fUST/lending_fUST_20240922
["ID","MTS","AMOUNT","RATE_DAILY","PERIOD"]
[338849624,1726942263373,-500.0,0.00014919,2]
[338849625,1726942263382,-440.63422603,0.00014919,2]
[338849626,1726942263393,-500.0,0.00014919,2]
[338849627,1726942263404,-500.0,0.00014919,2]
[338849628,1726942263414,-709.73,0.00014919,2]
[338849629,1726942263424,-500.0,0.00014919,2]
[338849630,1726942263434,-500.0,0.00014919,2]
[338849631,1726942263443,-500.0,0.00014919,2]
[338849632,1726942263454,-500.0,0.00014919,2]
[338849633,1726942263464,-500.0,0.00014919,2]
[338849634,1726942263474,-500.0,0.00014919,2]
[338849635,1726942263487,-500.0,0.00014919,2]
[338849636,1726942263497,-500.0,0.00014919,2]
[338849637,1726942263507,-500.0,0.00014919,2]
[338849638,1726942263517,-500.0,0.00014919,2]
[338849639,1726942263529,-500.0,0.00014919,2]
[338849640,1726942263540,-500.0,0.00014919,2]
[338849641,1726942263550,-504.94745652,0.00014919,2]
[338849642,1726942263560,-500.0,0.00014919,2]
[338849643,1726942263571,-500.0,0.00014919,2]
[338849644,1726942263581,-176.18,0.00014919,2]
[338849645,1726942263590,-500.0,0.00014919,2]
[338849646,1726942263600,-500.0,0.00014919,2]
[338849647,1726942263610,-500.0,0.00014919,2]
[338849648,1726942263620,-500.0,0.00014919,2]
[338849649,1726942263630,-500.0,0.00014919,2]
[338849650,1726942263644,-500.0,0.00014919,2]
[338849651,1726942263654,-500.0,0.00014919,2]
[338849652,1726942263664,-500.0,0.00014919,2]
[338849653,1726942263674,-500.0,0.00014919,2]
[338849654,1726942263685,-964.51,0.00014919,2]
[338849655,1726942263695,-440.09,0.00014919,2]
[338849656,1726942263706,-500.0,0.00014919,2]
[338849657,1726942263719,-500.0,0.00014919,2]
[338849658,1726942263730,-500.0,0.00014919,2]
[338849659,1726942263739,-500.0,0.00014919,2]
[338849660,1726942263749,-569.54081402,0.00014919,2]
[338849661,1726942263760,-500.0,0.00014919,2]
[338849662,1726942263770,-500.0,0.00014919,2]
[338849663,1726942263780,-500.0,0.00014919,2]
[338849664,1726942263790,-503.45060925,0.00014919,2]
[338849665,1726942263800,-357.94168986,0.00014919,2]
[338849666,1726942263811,-500.0,0.00014919,2]
[338849667,1726942263821,-500.0,0.00014919,2]
[338849668,1726942263831,-1052.877842,0.00014919,2]
[338849669,1726942263841,-500.0,0.00014919,2]
[338849670,1726942263851,-1144.77,0.00014919,2]
[338849671,1726942263862,-500.0,0.00014919,2]
[338849672,1726942263872,-1052.877842,0.00014919,2]
[338849673,1726942263882,-631.65038946,0.00014919,2]
[338849674,1726942263892,-206.305387,0.00014919,2]
[338849675,1726942263902,-1054.32,0.00014919,2]
[338849676,1726942263912,-500.0,0.00014919,2]
[338849677,1726942263922,-206.305387,0.00014919,2]
[338849678,1726942263932,-500.0,0.00014919,2]
[338849679,1726942263941,-500.0,0.00014919,2]
[338849680,1726942263952,-151.0,0.00014919,2]
[338849681,1726942263961,-500.0,0.00014919,2]
[338849682,1726942263971,-500.0,0.00014919,2]
[338849683,1726942263981,-500.0,0.00014919,2]
[338849684,1726942263990,-500.0,0.00014919,2]
[338849685,1726942264000,-500.0,0.00014919,2]
[338849686,1726942264010,-153.009167,0.00014919,2]
[338849687,1726942264020,-500.0,0.00014919,2]
[338849688,1726942264030,-763.71,0.00014919,2]
[338849689,1726942264039,-500.0,0.00014919,2]
[338849690,1726942264048,-500.0,0.00014919,2]
[338849691,1726942264058,-186.886306,0.00014919,2]
[338849692,1726942264067,-503.59200059,0.00014919,2]
[338849693,1726942264077,-500.0,0.00014919,2]
[338849694,1726942264087,-186.886306,0.00014919,2]
[338849695,1726942264097,-500.0,0.00014919,2]
[338849696,1726942264107,-500.0,0.00014919,2]
[338849697,1726942264117,-500.0,0.00014919,2]
[338849698,1726942264127,-636.31315831,0.00014919,2]
[338849699,1726942264137,-814.651206,0.00014919,2]
[338849700,1726942264147,-500.0,0.00014919,2]
[338849701,1726942264165,-500.0,0.00014919,2]
[338849702,1726942264177,-814.651206,0.00014919,2]
[338849703,1726942264187,-710.38,0.00014919,2]
[338849704,1726942264197,-500.0,0.00014919,2]
[338849705,1726942264207,-500.0,0.00014919,2]
[338849706,1726942264217,-500.0,0.00014919,2]
[338849707,1726942264226,-500.0,0.00014919,2]
[338849708,1726942264236,-500.0,0.00014919,2]
[338849709,1726942264246,-500.0,0.00014919,2]
[338849710,1726942264257,-1489.465888,0.00014919,2]
[338849711,1726942264267,-447.01107492,0.00014919,2]
[338849712,1726942264277,-151.0,0.00014919,2]
[338849713,1726942264287,-1489.465888,0.00014919,2]
[338849714,1726942264297,-500.0,0.00014919,2]
[338849715,1726942264307,-433.563241,0.00014919,2]
[338849716,1726942264318,-500.0,0.00014919,2]
[338849717,1726942264328,-500.0,0.00014919,2]
[338849718,1726942264339,-500.0,0.00014919,2]
[338849719,1726942264348,-433.563241,0.00014919,2]
[338849720,1726942264358,-500.0,0.00014919,2]
[338849721,1726942264368,-500.0,0.00014919,2]
[338849722,1726942264378,-151.0,0.00014919,2]
[338849723,1726942264388,-285.63,0.00014919,2]
[338849724,1726942264398,-500.0,0.00014919,2]
[338849725,1726942264408,-500.0,0.00014919,2]
[338849726,1726942264418,-500.0,0.00014919,2]
[338849727,1726942264427,-502.17291146,0.00014919,2]
[338849728,1726942264437,-500.0,0.00014919,2]
[338849729,1726942264447,-1671.09,0.00014919,2]
[338849730,1726942264458,-500.0,0.00014919,2]
[338849731,1726942264467,-500.0,0.00014919,2]
[338849732,1726942264477,-500.0,0.00014919,2]
[338849733,1726942264487,-500.0,0.00014919,2]
[338849734,1726942264496,-500.0,0.00014919,2]
[338849735,1726942264506,-500.0,0.00014919,2]
[338849736,1726942264515,-500.0,0.00014919,2]
[338849737,1726942264526,-567.24,0.00014919,2]
[338849738,1726942264536,-500.0,0.00014919,2]
[338849739,1726942264547,-500.0,0.00014919,2]
[338849740,1726942264557,-257.20803,0.00014919,2]
[338849741,1726942264566,-500.0,0.00014919,2]
[338849742,1726942264576,-373.834828,0.00014919,2]
[338849743,1726942264585,-500.0,0.00014919,2]
[338849744,1726942264595,-373.834828,0.00014919,2]
[338849745,1726942264604,-257.20803,0.00014919,2]
[338849746,1726942264614,-648.02,0.00014919,2]
[338849747,1726942264624,-830.806955,0.00014919,2]
[338849748,1726942264637,-500.0,0.00014919,2]
[338849749,1726942264647,-500.0,0.00014919,2]
[338849750,1726942264656,-500.0,0.00014919,2]
[338849751,1726942264666,-830.806955,0.00014919,2]
[338849752,1726942264675,-639.548412,0.00014919,2]
[338849753,1726942264686,-500.0,0.00014921,2]
[338849754,1726942264696,-500.0,0.00014921,2]
[338849755,1726942264706,-500.0,0.00014921,2]
[338849756,1726942264719,-320.31191535,0.00014921,2]
[338849757,1726942264729,-529.96,0.00014921,2]
[338849758,1726942264739,-785.94,0.00014921,2]
[338849759,1726942264749,-500.0,0.00014921,2]
[338849760,1726942264758,-500.0,0.00014921,2]
[338849761,1726942264768,-186.99202,0.00014921,2]
[338849762,1726942264778,-186.99202,0.00014921,2]
[338849763,1726942264788,-500.0,0.00014921,2]
[338849764,1726942264951,-151.0,0.00014921,2]
[338849765,1726942264963,-500.0,0.00014921,2]
[338849766,1726942264973,-500.0,0.00014921,2]
[338849767,1726942264982,-151.0,0.00014921,2]
[338849768,1726942264991,-500.0,0.00014921,2]
[338849769,1726942265000,-169.475788,0.00014921,2]
[338849770,1726942265009,-500.0,0.00014921,2]
[338849771,1726942265019,-499.56031725,0.00014921,2]
[338849772,1726942265028,-489.64669836,0.00014921,2]
[338849773,1726942265037,-200.0,0.00014921,2]
[338849774,1726942265046,-151.0,0.00014921,2]
[338849775,1726942265056,-500.0,0.00014921,2]
[338849776,1726942265065,-741.62,0.00014921,2]
[338849777,1726942265074,-151.0,0.00014921,2]
[338849778,1726942265083,-455.814143,0.00014921,2]
[338849779,1726942265093,-158.935374,0.00014921,2]
[338849780,1726942265102,-455.814143,0.00014921,2]
[338849781,1726942265112,-158.935374,0.00014921,2]
[338849782,1726942265122,-660.684835,0.00014921,2]
[338849783,1726942265131,-660.684835,0.00014921,2]
[338849784,1726942265140,-151.0,0.00014921,2]
[338849785,1726942265149,-151.0,0.00014921,2]
[338849786,1726942265158,-221.752684,0.00014921,2]
[338849787,1726942265168,-151.0,0.00014921,2]
[338849788,1726942265177,-992.983202,0.00014921,2]
[338849789,1726942265187,-992.983202,0.00014921,2]
[338849790,1726942265196,-652.776506,0.00014921,2]
[338849791,1726942265206,-261.621498,0.00014921,2]
[338849792,1726942265216,-873.225765,0.00014921,2]
[338849793,1726942265225,-652.776506,0.00014921,2]
[338849794,1726942265235,-261.621498,0.00014921,2]
[338849795,1726942265244,-873.225765,0.00014921,2]
[338849796,1726942265255,-151.0,0.00014921,2]
[338849797,1726942265264,-770.076405,0.00014921,2]
[338849798,1726942265274,-770.076405,0.00014921,2]
[338849799,1726942265283,-151.0,0.00014934,2]
[338849800,1726942265292,-151.0,0.00014934,2]
[338849801,1726942265302,-151.0,0.00014934,2]
[338849802,1726942265312,-841.440131,0.00014934,2]
[338849803,1726942265321,-841.440131,0.00014934,2]
[338849804,1726942265330,-616.129519,0.00014934,2]
[338849805,1726942265339,-616.129519,0.00014934,2]
[338849806,1726942265349,-151.0,0.00014934,2]
[338849807,1726942265359,-533.756075,0.00014934,2]
[338849808,1726942265368,-533.756075,0.00014934,2]
[338849809,1726942265378,-1861.587477,0.00014934,2]
[338849810,1726942265389,-1861.587477,0.00014934,2]
[338849811,1726942265398,-4725.187342,0.00014934,2]
[338849812,1726942265410,-4725.187342,0.00014934,2]
[338849813,1726942265423,-160.0,0.00014943,2]
[338849814,1726942265433,-151.0,0.00014944,2]
[338849815,1726942265444,-254.475687,0.00014944,2]
[338849816,1726942265455,-254.475687,0.00014944,2]
[338849817,1726942265465,-151.0,0.00014944,2]
[338849818,1726942265474,-500.0,0.00014944,2]
[338849819,1726942265483,-500.0,0.00014944,2]
[338849820,1726942265492,-500.0,0.00014944,2]
[338849821,1726942265501,-500.0,0.00014944,2]
[338849822,1726942265511,-500.0,0.00014944,2]
[338849823,1726942265520,-500.0,0.00014944,2]
[338849824,1726942265530,-500.0,0.00014944,2]
[338849825,1726942265540,-500.0,0.00014944,2]
[338849826,1726942265551,-500.0,0.00014944,2]
[338849827,1726942265561,-500.0,0.00014944,2]
[338849828,1726942265570,-500.0,0.00014944,2]
[338849829,1726942265579,-500.0,0.00014944,2]
[338849830,1726942265591,-500.0,0.00014944,2]
[338849831,1726942265601,-500.0,0.00014944,2]
[338849832,1726942265610,-502.3493915,0.00014944,2]
[338849833,1726942265619,-500.0,0.00014944,2]
[338849834,1726942265629,-500.0,0.00014944,2]
[338849835,1726942265642,-500.0,0.00014944,2]
[338849836,1726942265652,-874.59,0.00014944,2]
[338849837,1726942265661,-500.0,0.00014944,2]
[338849838,1726942265671,-500.0,0.00014944,2]
[338849839,1726942265681,-500.0,0.00014944,2]
[338849840,1726942265690,-151.0,0.00014944,2]
[338849841,1726942265699,-500.0,0.00014944,2]
[338849842,1726942265712,-500.0,0.00014944,2]
[338849843,1726942265721,-500.0,0.00014944,2]
[338849844,1726942265731,-500.0,0.00014944,2]
[338849845,1726942265742,-500.0,0.00014944,2]
[338849846,1726942265752,-500.0,0.00014944,2]
[338849847,1726942265761,-500.0,0.00014944,2]
[338849848,1726942265771,-513.63,0.00014944,2]
[338849849,1726942265782,-500.0,0.00014944,2]
[338849850,1726942265792,-500.0,0.00014944,2]
[338849851,1726942265802,-151.0,0.00014944,2]
[338849852,1726942265814,-151.0,0.00014944,2]
[338849853,1726942265822,-500.0,0.00014944,2]
[338849854,1726942265832,-568.91,0.00014944,2]
[338849855,1726942265841,-500.0,0.00014944,2]
[338849856,1726942265850,-500.0,0.00014944,2]
[338849857,1726942265859,-500.0,0.00014944,2]
[338849858,1726942265869,-500.0,0.00014944,2]
[338849859,1726942265878,-500.0,0.00014944,2]
[338849860,1726942265887,-500.0,0.00014944,2]
[338849861,1726942265896,-768.91,0.00014944,2]
[338849862,1726942265905,-500.0,0.00014944,2]
[338849863,1726942265915,-500.0,0.00014944,2]
[338849864,1726942265924,-270.133595,0.00014944,2]
[338849865,1726942265934,-500.0,0.00014944,2]
[338849866,1726942265944,-270.133595,0.00014944,2]
[338849867,1726942265954,-318.22229223,0.00014944,2]
[338849868,1726942265964,-500.0,0.00014944,2]
[338849869,1726942265974,-500.0,0.00014944,2]
[338849870,1726942265983,-500.0,0.00014944,2]
[338849871,1726942265992,-500.0,0.00014944,2]
[338849872,1726942266001,-500.0,0.00014944,2]
[338849873,1726942266010,-221.89640917,0.00014944,2]
[338849874,1726942266020,-500.0,0.00014944,2]
[338849875,1726942266030,-500.0,0.00014944,2]
[338849876,1726942266039,-504.41551199,0.00014944,2]
[338849877,1726942266048,-500.0,0.00014944,2]
[338849878,1726942266058,-500.0,0.00014944,2]
[338849879,1726942266067,-500.0,0.00014944,2]
[338849880,1726942266078,-1034.52,0.00014944,2]
[338849881,1726942266087,-500.0,0.00014944,2]
[338849882,1726942266096,-500.0,0.00014944,2]
[338849883,1726942266106,-500.0,0.00014944,2]
[338849884,1726942266115,-151.0,0.00014944,2]
[338849885,1726942266125,-500.0,0.00014944,2]
[338849886,1726942266134,-500.0,0.00014944,2]
[338849887,1726942266144,-500.0,0.00014944,2]
[338849888,1726942266154,-500.0,0.00014944,2]
[338849889,1726942266164,-500.0,0.00014944,2]
[338849890,1726942266173,-500.0,0.00014944,2]
[338849891,1726942266183,-500.0,0.00014944,2]
[338849892,1726942266192,-500.0,0.00014944,2]
[338849893,1726942266201,-500.0,0.00014944,2]
[338849894,1726942266211,-500.0,0.00014944,2]
[338849895,1726942266221,-500.0,0.00014944,2]
[338849896,1726942266231,-500.0,0.00014944,2]
[338849897,1726942266240,-564.08,0.00014944,2]
[338849898,1726942266250,-500.0,0.00014944,2]
[338849899,1726942266260,-500.0,0.00014944,2]
[338849900,1726942266269,-500.0,0.00014944,2]
[338849901,1726942266278,-500.0,0.00014944,2]
[338849902,1726942266288,-500.0,0.00014944,2]
[338849903,1726942266298,-258.437287,0.00014944,2]
[338849904,1726942266307,-258.437287,0.00014944,2]
[338849905,1726942266317,-556.12116077,0.00014944,2]
[338849906,1726942266326,-500.0,0.00014944,2]
[338849907,1726942266335,-500.0,0.00014944,2]
[338849908,1726942266345,-500.0,0.00014944,2]
[338849909,1726942266355,-500.0,0.00014944,2]
[338849910,1726942266364,-500.0,0.00014944,2]
[338849911,1726942266374,-500.0,0.00014944,2]
[338849912,1726942266385,-500.0,0.00014944,2]
[338849913,1726942266394,-221.82418248,0.00014944,2]
[338849914,1726942266406,-373.834828,0.00014944,2]
[338849915,1726942266416,-373.834828,0.00014944,2]
[338849916,1726942266427,-830.806955,0.00014944,2]
[338849917,1726942266438,-830.806955,0.00014944,2]
[338849918,1726942266448,-639.548412,0.00014944,2]
[338849919,1726942266457,-151.0,0.00014945,2]
[338849920,1726942266467,-151.0,0.00014945,2]
[338849921,1726942266476,-500.0,0.00014945,2]
[338849922,1726942266486,-194.5341,0.00014945,2]
[338849923,1726942266498,-194.5341,0.00014945,2]
[338849924,1726942266508,-555.09543705,0.00014945,2]
[338849925,1726942266519,-500.20872257,0.00014973,2]
[338849926,1726942266529,-500.0,0.00014973,2]
[338849927,1726942266539,-500.0,0.00014973,2]
[338849928,1726942266549,-500.0,0.00014973,2]
[338849929,1726942266558,-500.0,0.00014973,2]
[338849930,1726942266567,-500.0,0.00014973,2]
[338849931,1726942266576,-500.0,0.00014973,2]
[338849932,1726942266587,-500.0,0.00014973,2]
[338849933,1726942266596,-261.22898286,0.00014973,2]
[338849934,1726942266606,-500.0,0.00014973,2]
[338849935,1726942266615,-500.0,0.00014973,2]
[338849936,1726942266625,-500.0,0.00014973,2]
[338849937,1726942266638,-500.0,0.00014973,2]
[338849938,1726942266648,-500.0,0.00014973,2]
[338849939,1726942266658,-199.72750327,0.00014973,2]
[338849940,1726942266668,-500.0,0.00014973,2]
[338849941,1726942266677,-625.52723501,0.00014973,2]
[338849942,1726942266687,-500.0,0.00014973,2]
[338849943,1726942266696,-500.0,0.00014973,2]
[338849944,1726942266707,-500.0,0.00014973,2]
[338849945,1726942266717,-500.0,0.00014973,2]
[338849946,1726942266727,-500.0,0.00014973,2]
[338849947,1726942266738,-160.94570368,0.00014973,2]
[338849948,1726942266748,-500.0,0.00014973,2]
[338849949,1726942266759,-500.0,0.00014973,2]
[338849950,1726942266769,-500.0,0.00014973,2]
[338849951,1726942266778,-298.98632002,0.00014973,2]
[338849952,1726942266788,-500.0,0.00014973,2]
[338849953,1726942266798,-500.0,0.00014973,2]
[338849954,1726942266807,-587.1906936,0.00014973,2]
[338849955,1726942266816,-500.0,0.00014973,2]
[338849956,1726942266825,-500.0,0.00014973,2]
[338849957,1726942266834,-500.0,0.00014973,2]
[338849958,1726942266844,-1052.877842,0.00014973,2]
[338849959,1726942266854,-1052.877842,0.00014973,2]
[338849960,1726942266863,-206.305387,0.00014973,2]
[338849961,1726942266872,-206.305387,0.00014973,2]
[338849962,1726942266882,-186.886306,0.00014973,2]
[338849963,1726942266891,-186.886306,0.00014973,2]
[338849964,1726942266902,-814.651206,0.00014973,2]
[338849965,1726942266913,-814.651206,0.00014973,2]
[338849966,1726942266923,-1489.465888,0.00014973,2]
[338849967,1726942266933,-1489.465888,0.00014973,2]
[338849968,1726942266942,-433.563241,0.00014973,2]
[338849969,1726942266952,-433.563241,0.00014973,2]
[338849970,1726942266964,-151.0,0.00014973,2]
[338849971,1726942266973,-257.20803,0.00014973,2]
[338849972,1726942266983,-257.20803,0.00014973,2]
[338849973,1726942266993,-151.0,0.0001499,2]
[338849974,1726942267119,-186.99202,0.00014998,2]
[338849975,1726942267130,-186.99202,0.00014998,2]
[338849976,1726942267139,-151.0,0.00014998,2]
[338849977,1726942267149,-151.0,0.00014998,2]
[338849978,1726942267158,-151.0,0.00014998,2]
[338849979,1726942267167,-1249.430307,0.00014998,2]
[338849980,1726942267178,-455.814143,0.00014998,2]
[338849981,1726942267188,-455.814143,0.00014998,2]
[338849982,1726942267198,-660.684835,0.00014998,2]
[338849983,1726942267210,-660.684835,0.00014998,2]
[338849984,1726942267220,-652.776506,0.00014998,2]
[338849985,1726942267230,-652.776506,0.00014998,2]
[338849986,1726942267241,-770.076405,0.00014998,2]
[338849987,1726942267250,-770.076405,0.00014998,2]
[338849988,1726942267260,-160.0,0.00014999,2]
[338849989,1726942267269,-10963.0,0.00015,3]
[338849990,1726942267279,-37629.56863223,0.00015,2]
[338849991,1726942267453,-16512.0416768,0.00015,2]
[338849992,1726942268316,811.32,0.00010959,2]
[338849993,1726942344059,7897.55934331,0.00013999,2]
[338849995,1726942373395,166.666666,0.00011781,2]
[338849997,1726942475295,1320.4055447,0.00013986,2]
[338849999,1726942665868,1155.35485163,0.00013986,2]
[338850000,1726942671609,10000.0,0.00014,5]
[338850002,1726942770617,250.0,0.00013182,2]
[338850003,1726942770650,250.0,0.00013218,2]
[338850004,1726942771480,250.0,0.00013254,2]
[338850005,1726942771731,250.0,0.0001329,2]
[338850006,1726942771917,250.0,0.00013326,2]
[338850007,1726942772132,250.0,0.00013362,2]
[338850008,1726942772538,250.0,0.00013399,2]
[338850009,1726942772770,250.0,0.00013435,2]
[338850010,1726942773080,250.0,0.00013471,2]
[338850011,1726942773305,250.0,0.00013507,2]
[338850012,1726942773525,250.0,0.00013543,2]
[338850013,1726942773923,250.0,0.00013579,2]
[338850014,1726942774146,250.0,0.00013616,2]
[338850015,1726942774681,250.0,0.00013652,2]
[338850016,1726942774929,250.0,0.00013688,2]
[338850017,1726942775156,250.0,0.00013724,2]
[338850018,1726942775383,250.0,0.0001376,2]
[338850019,1726942775615,250.0,0.00013796,2]
[338850020,1726942775869,250.0,0.00013833,2]
[338850021,1726942776126,250.0,0.00013869,2]
[338850022,1726942789393,1007.99,0.00010959,2]
[338850023,1726942799898,840.0,0.00010959,2]
[338850024,1726942810572,700.0,0.00010959,2]
[338850025,1726942814187,849.98448107,0.00013987,2]
[338850026,1726942821110,583.33,0.00010959,2]
[338850027,1726942831674,486.11,0.00010959,2]
[338850028,1726942842210,405.09,0.00010959,2]
[338850030,1726942850855,1010.93549515,0.00013985,2]
[338850031,1726942852782,337.57,0.00010959,2]
[338850033,1726942863318,281.31,0.00010959,2]
[338850034,1726942873879,234.43,0.00010959,2]
[338850035,1726942884448,195.36,0.00010959,2]
[338850036,1726942894970,162.8,0.00010959,2]
[338850037,1726942897238,14379.1322049,0.00013997,2]
[338850039,1726942905886,814.0,0.00010959,2]
[338850040,1726942906219,166.666666,0.00011781,2]
[338850042,1726942918942,2557.12317322,0.00013987,2]
[338850046,1726942979082,268.048078,0.00013699,2]
[338850047,1726942985353,792.661381,0.00013699,2]
[338850050,1726943041171,884.5685583,0.00013975,2]
[338850053,1726943121863,1000.0,0.00013976,2]
[338850055,1726943137931,2183.0630849,0.00013076,2]
[338850059,1726943214776,1000.0,0.00013976,2]
[338850063,1726943231407,773.99748853,0.00013975,2]
[338850066,1726943259353,2045.69853856,0.00013975,2]
[338850067,1726943261263,2045.69853856,0.00013978,2]
[338850068,1726943263399,2045.69853856,0.00013981,2]
[338850069,1726943265660,2045.69853856,0.00013984,2]
[338850070,1726943267270,2045.69853856,0.00013987,2]
[338850072,1726943322692,1000.0,0.00013976,2]
[338850073,1726943347054,222.93863,0.00013163,2]
[338850086,1726943368616,1363.63697384,0.00013977,2]
[338850087,1726943421752,677.24780242,0.00013964,2]
[338850122,1726943432112,-809.97140976,0.00014022,2]
[338850124,1726943432126,-160.28406417,0.00014022,2]
[338850126,1726943432137,-300.0,0.00014063,2]
[338850127,1726943432148,-300.0,0.00014063,2]
[338850128,1726943432158,-500.0,0.00014064,2]
[338850129,1726943432169,-500.0,0.00014064,2]
[338850130,1726943432179,-500.0,0.00014064,2]
[338850132,1726943432190,-500.0,0.00014064,2]
[338850133,1726943432201,-500.0,0.00014064,2]
[338850134,1726943432211,-500.0,0.00014064,2]
[338850135,1726943432222,-500.0,0.00014064,2]
[338850136,1726943432233,-500.0,0.00014064,2]
[338850137,1726943432242,-500.0,0.00014064,2]
[338850138,1726943432251,-500.0,0.00014064,2]
[338850139,1726943432260,-183.56316374,0.00014064,2]
[338850140,1726943432269,-500.0,0.00014064,2]
[338850141,1726943432278,-500.0,0.00014064,2]
[338850142,1726943432288,-500.0,0.00014064,2]
[338850143,1726943432297,-500.0,0.00014064,2]
[338850144,1726943432307,-500.0,0.00014064,2]
[338850145,1726943432319,-500.0,0.00014064,2]
[338850146,1726943432328,-500.0,0.00014064,2]
[338850147,1726943432337,-440.23279413,0.00014064,2]
[338850148,1726943432347,-500.0,0.00014064,2]
[338850149,1726943432639,-500.0,0.00014064,2]
[338850150,1726943432651,-20.64348848,0.00014064,2]
[338850151,1726943432665,-479.35651152,0.00014064,2]
[338850152,1726943432675,-500.0,0.00014064,2]
[338850153,1726943432685,-425.59719031,0.00014064,2]
[338850154,1726943432695,-500.0,0.00014064,2]
[338850155,1726943432705,-500.0,0.00014064,2]
[338850156,1726943432714,-500.0,0.00014064,2]
[338850157,1726943432725,-500.0,0.00014064,2]
[338850158,1726943432734,-500.0,0.00014064,2]
[338850159,1726943432744,-500.0,0.00014064,2]
[338850160,1726943432753,-500.0,0.00014064,2]
[338850161,1726943432762,-500.0,0.00014064,2]
[338850162,1726943432772,-500.0,0.00014064,2]
[338850163,1726943432781,-500.0,0.00014064,2]
[338850164,1726943432791,-500.0,0.00014064,2]
[338850165,1726943432800,-500.0,0.00014064,2]
[338850166,1726943432811,-500.0,0.00014064,2]
[338850167,1726943432822,-500.0,0.00014064,2]
[338850168,1726943432832,-470.03016296,0.00014064,2]
[338850169,1726943432842,-500.0,0.00014064,2]
[338850170,1726943432852,-500.0,0.00014064,2]
[338850171,1726943432862,-500.0,0.00014064,2]
[338850172,1726943432871,-500.0,0.00014064,2]
[338850173,1726943432881,-500.0,0.00014064,2]
[338850174,1726943432890,-500.0,0.00014064,2]
[338850175,1726943432903,-500.0,0.00014064,2]
[338850176,1726943432914,-500.0,0.00014064,2]
[338850177,1726943432927,-500.0,0.00014064,2]
[338850178,1726943432937,-500.0,0.00014064,2]
[338850179,1726943432947,-500.0,0.00014064,2]
[338850180,1726943432957,-500.0,0.00014064,2]
[338850181,1726943432966,-500.0,0.00014064,2]
[338850182,1726943432976,-500.0,0.00014064,2]
[338850183,1726943432985,-500.0,0.00014064,2]
[338850184,1726943432995,-500.0,0.00014064,2]
[338850185,1726943433004,-500.0,0.00014064,2]
[338850186,1726943433013,-500.0,0.00014064,2]
[338850187,1726943433023,-313.27562361,0.00014064,2]
[338850188,1726943433032,-500.0,0.00014064,2]
[338850189,1726943433041,-500.0,0.00014064,2]
[338850190,1726943433051,-500.0,0.00014064,2]
[338850191,1726943433060,-500.0,0.00014064,2]
[338850192,1726943433069,-500.0,0.00014064,2]
[338850193,1726943433078,-500.0,0.00014064,2]
[338850194,1726943433087,-500.0,0.00014064,2]
[338850195,1726943433097,-500.0,0.00014064,2]
[338850196,1726943433106,-500.0,0.00014064,2]
[338850197,1726943433116,-500.0,0.00014064,2]